Cogmind - Beta 9 @@@ ROGUE MODE // 2019.10.23 @ 12:43:18 Player: Hilbert Result: Destroyed by G-47 Trooper with Particle Gun Performance ------------- Evolutions (2) 1000 Regions Visited (3) 600 Robots Destroyed (18) 90 Value Destroyed (467) 467 Prototype IDs (0) 0 Alien Tech Used (0) 0 Bonus (470) 470 TOTAL SCORE: 2627 Bonus ------- Pacifist 470 Cogmind --------- Core Integrity 0/550 Matter 300/300 Energy 125/125 System Corruption 0% Temperature Cool (9) Location -8/Materials Parts ------- Power (1) Light Ion Engine Propulsion (6) Light Treads Flight Unit Utility (2) Advanced Terrain Scanner Weapon (2) Great Maul Inventory (4) Improved Heat Sink Improved Grenade Launcher Hammer Peak State ------------ Power Nuclear Core Propulsion Light Treads Light Treads Aluminum Leg Utility Advanced Terrain Scanner Maneuvering Thrusters Weapon Great Maul Inventory Light Ion Engine Improved Heat Sink Improved Grenade Launcher Hammer [Rating: 15] Favorites ----------- Power Light Ion Engine Engine Light Ion Engine Power Core Nuclear Core Propulsion Light Treads Treads Light Treads Leg Aluminum Leg Wheel Wheel Flight Unit Flight Unit Utility Advanced Terrain Scanner Device Advanced Terrain Scanner Hackware Hacking Suite Weapon Hammer Ballistic Gun Heavy Assault Rifle Launcher Improved Grenade Launcher Special Weapon Plasma Cutter Impact Weapon Hammer Build | -11 -10 -9 -8 ------- Run | Scr Mat Mat Mat Slots Evolved 4 | . . 2 2 Power . | . . . . Propulsion 4 | . . 2 2 Utility . | . . . . Weapon . | . . . . Parts Attached 29 | 3 . 3 23 Power 6 | 1 . . 5 Engine 5 | 1 . . 4 Core 1 | . . . 1 Reactor . | . . . . Propulsion 14 | 2 . 2 10 Treads 6 | . . 2 4 Leg 3 | 2 . . 1 Wheel 1 | . . . 1 Hover . | . . . . Flight 4 | . . . 4 Utility 3 | . . . 3 Device 2 | . . . 2 Storage . | . . . . Processor . | . . . . Hackware 1 | . . . 1 Protection . | . . . . Artifact . | . . . . Weapon 6 | . . 1 5 Energy Gun . | . . . . Energy Cannon . | . . . . Ballistic Gun 1 | . . . 1 Ballistic Cannon . | . . . . Launcher 1 | . . . 1 Special Weapon 1 | . . 1 . Impact Weapon 3 | . . . 3 Slashing Weapon . | . . . . Piercing Weapon . | . . . . Special Melee Weapon . | . . . . Unidentified Prototypes . | . . . . Parts Lost 16 | . . . 16 Power 2 | . . . 2 Propulsion 12 | . . . 12 Utility 1 | . . . 1 Weapon 1 | . . . 1 Highest Loss Streak 9 | . . . 9 Average Slot Usage (%) 51 | . 42 56 51 Engine 5 | . 14 11 4 Core 3 | . . . 3 Treads 12 | . . 22 13 Leg 8 | . 28 22 5 Flight 4 | . . . 5 Device 5 | . . . 6 Hackware 3 | . . . 3 Impact Weapon 7 | . . . 8 Naked Turns . | . . . . Heaviest Build 15 | 3 3 4 15 Greatest Support 20 | 20 3 3 20 Greatest Overweight (x) 4 | . . 1 4 Average Overweight (x) . | . . . 1 Largest Inventory Capacity 4 | 4 4 4 4 Average Capacity 4 | 4 4 4 4 Most Carried 4 | 3 3 3 4 Average Carried 2 | 1 3 1 2 Final Capacity 4 | . . . 4 Final Carried 3 | . . . 3 Class Distribution -------------------- 100% | Mutant Dominant Class ---------------- Mutant | -10/Materials Mutant | -9/Materials Mutant | -8/Materials Resources | -11 -10 -9 -8 ----------- Run | Scr Mat Mat Mat Matter Collected 505 | 160 . . 345 Remotely . | . . . . Salvage Created 535 | . . . 535 Parts 25 | . . . 25 Haulers Intercepted 1 | . . . 1 Recyclers Shooed . | . . . . Parts Field Recycled . | . . . . Retrieved Matter . | . . . . Parts Self-Destructed . | . . . . Prevented . | . . . . Kills | -11 -10 -9 -8 ------- Run | Scr Mat Mat Mat Combat Hostiles Destroyed 14 | . . . 14 Melee 5 | . . . 5 Guns 1 | . . . 1 AOE 4 | . . . 4 Classes Destroyed 7 | . . . 7 Worker 2 | . . . 2 Hauler 1 | . . . 1 Watcher 1 | . . . 1 Swarmer 6 | . . . 6 Grunt 4 | . . . 4 Sentry 3 | . . . 3 Hunter 1 | . . . 1 Best Kill Streak 4 | . . . 4 Combat Bots Only 4 | . . . 4 Max Kills in Single Turn 3 | . . . 3 Gunslinging . | . . . . Exploded 3 | . . . 3 Melee 1 | . . . 1 Uniques/NPCs Destroyed . | . . . . Combat | -11 -10 -9 -8 -------- Run | Scr Mat Mat Mat Damage Taken 2050 | . 97 90 1863 Core 630 | . 47 23 560 Absorbed by Shields . | . . . . Core Remaining (%) 91 | 100 81 94 . Volleys Fired 18 | . . 3 15 Largest 1 | . . 1 1 Hottest 36 | . . 20 36 Shots Fired 18 | . . 3 15 Gun 11 | . . . 11 Cannon . | . . . . Launcher 4 | . . . 4 Special 3 | . . 3 . Kinetic 11 | . . . 11 Thermal 3 | . . 3 . Explosive 4 | . . . 4 Electromagnetic . | . . . . Robot Hit Streak 8 | . . . 8 Robot Miss Streak 1 | . . . 1 Penetration Max . | . . . . Secondary Targets . | . . . . Shots Hit Robots 62 | . . . 62 Core Hits 16 | . . . 16 Critical Hits . | . . . . Critical Kills . | . . . . Critical Parts Destroyed . | . . . . Melee Attacks 99 | . . . 99 Impact 99 | . . . 99 Slashing . | . . . . Piercing . | . . . . Sneak Attacks 4 | . . . 4 Combat Hostiles . | . . . . Follow-up Attacks . | . . . . Damage Inflicted 1601 | . . . 1601 Guns 108 | . . . 108 Cannons . | . . . . Explosions 338 | . . . 338 Melee 1155 | . . . 1155 Ramming . | . . . . Kinetic 108 | . . . 108 Thermal . | . . . . Explosive 338 | . . . 338 Electromagnetic . | . . . . Impact 1155 | . . . 1155 Slashing . | . . . . Piercing . | . . . . Highest Corruption . | . . . . Average Corruption . | . . . . Corruption Purged . | . . . . Overload Shots . | . . . . Overflow Damage 263 | . . . 263 Projectiles . | . . . . Explosions . | . . . . Melee 263 | . . . 263 Knockbacks 2 | . . . 2 Impact 2 | . . . 2 Kinetic . | . . . . Secondary . | . . . . Self-Inflicted Damage . | . . . . Shots . | . . . . Rammed . | . . . . Targets Rammed . | . . . . Kicked . | . . . . Crushed . | . . . . Highest Temperature 4 | . . . 4 Average Temperature 2 | . . . 2 Received Heat Transfer 513 | . 39 42 432 Siege Activations . | . . . . Robots Corrupted . | . . . . Combat Hostiles . | . . . . Parts Fried 8 | . . . 8 Impact Corruptions 11 | . . . 11 Robots Melted . | . . . . Combat Hostiles . | . . . . Parts Melted . | . . . . Heat Transferred . | . . . . Parts Sabotaged . | . . . . Parts Stolen . | . . . . Parts Stripped . | . . . . Power Chain Reactions . | . . . . Missiles Intercepted . | . . . . Alert | -11 -10 -9 -8 ------- Run | Scr Mat Mat Mat Peak Influence 181 | . 80 15 181 Average Influence 67 | . 28 6 80 Maximum Alert Level . | . . . . Low Security (%) 100 | . . . . Level 1 . | . . . . Level 2 . | . . . . Level 3 . | . . . . Level 4 . | . . . . Level 5 . | . . . . High Security . | . . . . Max Security . | . . . . Squads Dispatched 7 | . 2 1 4 Investigation 1 | . 1 . . Extermination . | . . . . Reinforcement 2 | . 1 1 . Assault . | . . . . Garrison 4 | . . . 4 Intercept . | . . . . Construction Impeded . | . . . . Haulers Reinforced . | . . . . Stealth | -11 -10 -9 -8 --------- Run | Scr Mat Mat Mat Distress Signals 5 | . 1 . 4 Communications Jammed . | . . . . Distress Signals . | . . . . Times Spotted 56 | . 17 11 28 Peak Tracking Total 11 | . 11 9 6 Tactical Retreats 7 | . 3 1 3 Traps | -11 -10 -9 -8 ------- Run | Scr Mat Mat Mat Traps Triggered 1 | . . . 1 Indirectly . | . . . . Trap Hack Attempts . | . . . . Triggered . | . . . . Disarmed . | . . . . Reprogrammed . | . . . . Reused . | . . . . Traps Extracted . | . . . . Installed . | . . . . Triggered . | . . . . Machines | -11 -10 -9 -8 ---------- Run | Scr Mat Mat Mat Machines Disabled . | . . . . Max in Single Turn . | . . . . Machines Sabotaged . | . . . . Garrisons Compromised . | . . . . Overloaded Fab Kills . | . . . . Fab Network Shutdowns . | . . . . Hacking | -11 -10 -9 -8 --------- Run | Scr Mat Mat Mat Machines Accessed 6 | . 2 3 1 Terminals 6 | . 2 3 1 Fabricators . | . . . . Repair Stations . | . . . . Recycling Units . | . . . . Scanalyzers . | . . . . Garrison Access . | . . . . Total Hacks 21 | . 7 9 5 Successful 7 | . 3 1 3 Failed 14 | . 4 8 2 Catastrophic 1 | . . . 1 Database Lockouts . | . . . . Manual 18 | . 7 7 4 Terminals 21 | . 7 9 5 Fabricators . | . . . . Repair Stations . | . . . . Recycling Units . | . . . . Scanalyzers . | . . . . Garrison Access . | . . . . Terminal Hacks 4 | . 1 1 2 Level Access Points 1 | . . . 1 Unreport Threat 3 | . 1 1 1 Fabricator Hacks . | . . . . Repair Station Hacks . | . . . . Recycling Unit Hacks . | . . . . Scanalyzer . | . . . . Garrison Access Hacks . | . . . . Unauthorized Hacks 13 | . 4 7 2 Terminals 3 | . 2 . 1 Botnet 3 | . 2 . 1 Fabricators . | . . . . Repair Stations . | . . . . Recycling Units . | . . . . Scanalyzers . | . . . . Garrison Access . | . . . . Data Cores Recovered . | . . . . Used . | . . . . Hacking Detections 4 | . 2 2 . Full Trace Events 1 | . 1 . . Feedback Events . | . . . . Feedback Blocked . | . . . . Robot Schematics Acquired . | . . . . Robots Built . | . . . . Matter . | . . . . Time . | . . . . Total Robot Build Rating . | . . . . Part Schematics Acquired . | . . . . Parts Built . | . . . . Matter . | . . . . Time . | . . . . Total Part Build Rating . | . . . . Parts Repaired . | . . . . Time . | . . . . Parts Recycled . | . . . . Recycled Matter . | . . . . Retrieved Matter . | . . . . Retrieved Components . | . . . . Parts Scanalyzed . | . . . . Part Schematics Acquired . | . . . . Parts Damaged . | . . . . Bothacking | -11 -10 -9 -8 ------------ Run | Scr Mat Mat Mat Used RIF Installer . | . . . . Robots Hacked . | . . . . Non-combat . | . . . . Combat . | . . . . Robot Hacks Applied . | . . . . Relay Couplers Released . | . . . . Robots Rewired . | . . . . Allies Hacked . | . . . . Hacks Repelled . | . . . . Allies | -11 -10 -9 -8 -------- Run | Scr Mat Mat Mat Total Allies . | . . . . Largest Group . | . . . . Highest-Rated Group . | . . . . Highest-Rated Ally . | . . . . Total Orders . | . . . . Ally Attacks . | . . . . Total Damage . | . . . . Kills . | . . . . Allies Corrupted . | . . . . Allies Melted . | . . . . Intel | -11 -10 -9 -8 ------- Run | Scr Mat Mat Mat Robot Analysis Total . | . . . . Derelict Logs Recovered . | . . . . Drone Launches . | . . . . Drone Recoveries . | . . . . Exploration | -11 -10 -9 -8 ------------- Run | Scr Mat Mat Mat Turns Passed 1099 | 42 97 73 887 Spaces Moved 748 | 52 193 114 389 Core 608 | 40 193 114 261 Treads 26 | . . . 26 Legs 16 | 12 . . 4 Wheels 4 | . . . 4 Hover . | . . . . Flight 94 | . . . 94 Fastest Speed 50 | 50 50 50 50 Average Speed 97 | 66 50 51 138 Slowest Speed 250 | 120 50 100 250 Overloaded Moves . | . . . . Propulsion Burnouts . | . . . . Robots Hopped . | . . . . Cave-ins Triggered . | . . . . Exploration Rate (%) 26 | 3 51 19 31 Regions Visited 3 Branch Regions . Pre-discovered Areas . | . . . . Known Exits Taken . | . . . . Unknown Exits Taken 3 | 1 1 1 . Scrap Searched . | . . . . Spaces Dug 12 | . . . 12 Terrain Destroyed 53 | . . . 53 Melee 12 | . . . 12 Projectile . | . . . . AOE 41 | . . . 41 Actions | -11 -10 -9 -8 --------- Run | Scr Mat Mat Mat Total 917 | 57 192 121 547 Wait 14 | . . . 14 Move 745 | 51 192 113 389 Hop . | . . . . Pick Up 6 | 3 . 1 2 Fast Attach 24 | 3 . 1 20 Attach 5 | . . 2 3 Detach 3 | . . 1 2 Swap . | . . . . Drop 3 | . . . 3 Fire 18 | . . 3 15 Melee 99 | . . . 99 Ram . | . . . . Kick . | . . . . Crush . | . . . . Escape Stasis . | . . . . Rewire . | . . . . Trap . | . . . . Miscellaneous . | . . . . Route ------- -11/Scrapyard -10/Materials -9/Materials -8/Materials (discovered 3 exits: Fac x3) History --------- Turn | Location | Event 2 | -11/Scrapyard | Met Revision 17 4 | -11/Scrapyard | Discovered new exit (range 16) 43 | -11/Scrapyard | Entered Materials 138 | -10/Materials | Discovered new exit (range 4) 140 | -10/Materials | Entered another Materials area 140 | -9/Materials | Evolved 2 slots: Propulsion x2 211 | -9/Materials | Discovered new exit (range 5) 213 | -9/Materials | Entered another Materials area 213 | -8/Materials | Evolved 2 slots: Propulsion x2 248 | -8/Materials | Identified exit to Factory 324 | -8/Materials | Build established: Mutant 470 | -8/Materials | Garrison activated, responded to threat 545 | -8/Materials | Core integrity fell below 50% 569 | -8/Materials | Lost 9 parts (1p7n1w) 892 | -8/Materials | Core integrity fell below 20% 1064 | -8/Materials | Garrison activated, responded to threat 1100 | -8/Materials | Destroyed by G-47 Trooper with Particle Gun Last Messages --------------- 01064_ S-10 Pest calls for garrison reinforcements. 01064_ ALERT: Activating Garrison Access M001. 01065_ S-10 Pest system terminally corrupted. 01065_ Flight Unit fried. 01067_ Nuclear Core destroyed. 01067_ R-06 Scavenger collects Heat Sink. 01069_ K-01 Serf collects debris. 01070_ Maneuvering Thrusters destroyed. 01070_ S-10 Pest destroyed. 01072_ K-01 Serf collects debris. 01080_ Destroyed Flight Unit. 01080_ S-10 Pest system corrupted by crushing effect. 01081_ S-10 Pest system terminally corrupted. 01081_ K-01 Serf collects debris. 01084_ Acquired 10 matter. 01086_ K-01 Serf collects debris. 01087_ Acquired Flight Unit. 01089_ K-01 Serf collects debris. 01089_ Acquired 10 matter. 01093_ K-01 Serf collects debris. Map ----- +----------------------------------------------------+ | ?????????????????????????????????????????????????? | | ?????????????????????????????????????????????????? | | ?????????????????????????????????????????????????? | | ?????????????????????????????????????????????????? | | ?????????????????????????????????????????????????? | | ?????????????????????????????????????????????????? | | ?????????????????????????????????????????????????? | | ?????????????????????????????????????????????????? | | ?????????????????????????????????????????????????? | | ?????????????????????????????????????????????????? | | ??????????????????????#??"???????????????????????? | | ????????????????????????? ???????????????????????? | | ?????????????##????##?????? ????????#????????????? | | ?????????????????#?#??#?#?????#??????????????????? | | ???????????????#?#?#??##?????????#???????????????? | | ????????????????#????????????????????????????????? | | ???????????????#???#????????????????? ???????????? | | ????????????#????????????????? ??????????????????? | | ???????????????????#???#??#???????? ?????????????? | | ??????????#?#??????#??????????????? ??? ????????? | | ???????????#????#?##########???? ??? ???? ???????? | | ??????? ??????????# #??? ??? ????????????? | | ??????????????????# """"" #?????????????????????? | | ######? "?????????# ""T"" #????? ??? ???????"???? | | #? ???? ????# ##???#?????#? ????????? | | #??????? ?#?## @ #?????????? ?????????? | | #??????"?????# """ k##??#???##????????????? | | #?? ?"?"?????# """ #??##### ##???????????? | | ! #???????? ??## """%%% #?? #??? ????"??? | | % #????????????# [ %#? #?? ????????? | | ##+########/###########+##g#? ! ?? ?????????? | | %[%# """ ???????#????? | | + """ ?#????????? ?? | | ! # """ ?????????????? | | ########## ########### # ??????????????? | | ?????????# # ?? ? ? # # ] ???????? ???? | | ??####???# #??????" # #?###+########?#??????# | | ? !!??# #??????? ?+ ##### ## # #? ????? | | ?""" !! ?# #????""???# # / #??????? | | """ !! ## #?? ?? ? # + #????????? | | """ ## #??#+####?# # + #??????? | | ## #??# #?#####+######### """ # #?##???? | | "" "" *## #??# #?# ##??#??""" #???#????? | | ""S"" ?# #### #?# ]!! #??????""" #????????? | | ?"""" ??## #### ### ]!! #???#??##### ???????? | | ? ???# # ]!! ###??##????#??#?????? | | ?#####???# + #??###?????#??#?????" | | ?# ?????## # !#?#?#????#?? ????? ?? | | ##+################## #??##???????????????? | | ##??# # #????#?##?#?????????? | +----------------------------------------------------+ Best States ------------- Heat Dissipation 31 Energy Generation 14 Energy Capacity 265 Matter Stores 300 Matter Capacity 300 Sight Range 16 Terrain Scan Range 20 Terrain Scan Density 10 Evasion (%) 55 Recoil Reduction 2 Offensive Hacking 10 Item Schematics ----------------- None Robot Schematics ------------------ None Fabricated ------------ Nothing Alien Tech Used ----------------- None Achievements -------------- None Challenges ------------ None Game ------ Seed LightpackImpulseCompactor Manual? 0 Play Time 00:16:10 Cumulative 15.1 hours Start 2019.10.23 @ 12:27:20 End 2019.10.23 @ 12:43:18 Sessions 1 Manual Loads 0 Difficulty Rogue Special Mode None Game No. 34 Rogue 34 Adventurer 0 Explorer 0 Win Type - Total 0 Types 0/0/0/0/0/0/0 Lore% 9 Gallery% 24 Achievement% 17 Wizard Run 0 Options --------- ASCII 0 Keyboard 1 Movement Vi Keybinds 0 Fullscreen 1 Font 18/SmallcapsGlow Map View 76x50 Tactical HUD 1 Map Filters NONE Filters NONE Steam 1 RUN: 2f1d2bc1-0f4b-4595-bfe6-f72fafc47867